[Event "12th KIIT International 2019"]
[Site "Odisha"]
[Date "2019.05.31"]
[Round "1"]
[White "Pawar, Harshit"]
[Black "Das, Sayantan"]
[Result "0-1"]
[ECO "B23"]
[WhiteElo "1789"]
[BlackElo "2416"]
[Annotator "ChessBase"]
[PlyCount "79"]
[EventDate "2019.05.31"]
[EventType "swiss"]
[EventCountry "IND"]
[SourceTitle "playchess.com"]
[Source "ChessBase"]
[SourceQuality "1"]
[TimeControl "40/5400+30:1800+30"]

1. e4 {[%emt 0:00:00]} c5 {[%emt 0:00:11]} 2. Nc3 {[%emt 0:00:00]} d6 {[%emt 0:00:47]} 3. f4 {[%emt 0:01:14]} Nc6 {[%emt 0:00:11]} 4. Nf3 {[%emt 0:00:16]} g6 {[%emt 0:00:16]} 5. Bc4 {[%emt 0:01:11]} Bg7 {[%emt 0:01:04]} 6. d3 {[%emt 0:01:16]} e6 {[%emt 0:04:38]} 7. O-O {[%emt 0:00:07]} Nge7 {[%emt 0:00:13]} 8. Qe1 {[%emt 0:00:06]} O-O {[%emt 0:02:22]} 9. f5 {[%emt 0:00:07]} d5 {[%emt 0:12:21]} 10. Bb3 {[%emt 0:00:07]} c4 {[%emt 0:05:38]} 11. dxc4 {[%emt 0:00:12]} d4 {[%emt 0:00:24]} 12. f6 {[%emt 0:01:40]} Bxf6 {[%emt 0:05:37]} 13. e5 {[%emt 0:01:23]} Bg7 {[%emt 0:04:03]} 14. Ne4 {[%emt 0:01:19]} Nxe5 {[%emt 0:03:53]} 15. Nxe5 {[%emt 0:03:05]} Bxe5 {[%emt 0:00:07]} 16. Bh6 {[%emt 0:01:51]} Nf5 {[%emt 0:04:23]} 17. Bxf8 {[%emt 0:02:18]} Qxf8 {[%emt 0:00:13]} 18. Ng5 {[%emt 0:09:30]} Bc7 {[%emt 0:07:43]} 19. Rxf5 {[%emt 0:01:31]} gxf5 {[%emt 0:00:26]} 20. Qh4 {[%emt 0:02:22]} Qg7 {[%emt 0:04:09]} 21. Nf3 {[%emt 0:00:12]} Bd7 {[%emt 0:02:53]} 22. Kh1 {[%emt 0:04:17]} Bb6 {[%emt 0:04:40]} 23. Qe7 {[%emt 0:01:58]} Bc6 {[%emt 0:01:20]} 24. c5 {[%emt 0:00:11]} Bd8 {[%emt 0:00:59]} 25. Qd6 {[%emt 0:01:58]} Bf6 {[%emt 0:01:00]} 26. Bc4 {[%emt 0:06:06]} Kh8 {[%emt 0:02:05]} 27. Qf4 {[%emt 0:01:40]} Rg8 {[%emt 0:00:50]} 28. Rg1 {[%emt 0:00:06]} Qg4 {[%emt 0:05:33]} 29. Qxg4 {[%emt 0:02:20]} fxg4 {[%emt 0:00:07]} 30. Nd2 {[%emt 0:00:06]} Rg5 {[%emt 0:00:33]} 31. b4 {[%emt 0:01:12]} Rh5 {[%emt 0:01:22]} 32. Re1 {[%emt 0:01:39]} a6 {[%emt 0:02:56]} 33. Kg1 {[%emt 0:02:52]} Kg7 {[%emt 0:03:42]} 34. Bd3 {[%emt 0:00:35]} Be5 {[%emt 0:00:46]} 35. g3 {[%emt 0:01:36]} Bxg3 {[%emt 0:01:29]} 36. Re2 {[%emt 0:03:10]} Bf4 {[%emt 0:00:41]} 37. Nf1 {[%emt 0:02:13]} e5 {[%emt 0:01:17]} 38. Be4 Rh3 {[%emt 0:00:30]} 39. Bxc6 bxc6 {[%emt 0:00:30]} 40. Kg2 0-1

[Event "12th KIIT International 2019"]
[Site "Odisha"]
[Date "2019.06.01"]
[Round "2.5"]
[White "Petrosyan, Manuel"]
[Black "Vignesh N"]
[Result "1-0"]
[ECO "D32"]
[WhiteElo "2573"]
[BlackElo "1946"]
[Annotator "RC"]
[PlyCount "53"]
[EventDate "2019.01.18"]
[EventType "swiss"]
[EventCountry "IND"]
[SourceTitle "playchess.com"]
[Source "ChessBase"]
[SourceQuality "1"]
[TimeControl "5400+30"]

1. Nf3 Nf6 2. c4 c5 3. Nc3 Nc6 4. e3 e6 5. d4 d5 6. cxd5 exd5 7. Bb5 a6 8. Bxc6+ bxc6 9. O-O Bd6 10. h3 O-O 11. b3 Ne4 12. Bb2 Qf6 13. dxc5 Nxc5 14. Na4 Qg6 15. Nxc5 Bxh3 16. Nh4 Qg5 17. Ne4 Qxh4 18. Nxd6 Rad8 19. Qf3 Bg4 20. Qf4 Qh5 21. f3 Be6 22. Nb7 Rb8 23. Nc5 a5 24. Rac1 Rb4 25. Bd4 Qg6 26. Kf2 Re8 27. Qg3 1-0

[Event "12th KIIT International 2019"]
[Site "Odisha"]
[Date "2019.06.01"]
[Round "2.6"]
[White "Souradip Deb"]
[Black "Debashis, Das"]
[Result "1/2-1/2"]
[ECO "A07"]
[WhiteElo "1971"]
[BlackElo "2544"]
[Annotator "ChessBase"]
[PlyCount "61"]
[EventDate "2019.01.18"]
[EventType "swiss"]
[EventCountry "IND"]
[SourceTitle "playchess.com"]
[Source "ChessBase"]
[SourceQuality "1"]
[TimeControl "5400+30"]

1. Nf3 Nf6 2. g3 d5 3. Bg2 c6 4. O-O Bg4 5. d3 Nbd7 6. h3 Bh5 7. Nbd2 e5 8. e4 dxe4 9. dxe4 Bc5 10. Qe1 O-O 11. a4 a5 12. Nc4 Qc7 13. Bd2 b6 14. Nh4 Ne8 15. Kh1 f6 16. Nf5 Nd6 17. Ncxd6 Bxd6 18. f4 Bc5 19. g4 Bg6 20. g5 Rae8 21. Qg3 fxg5 22. fxg5 Rf7 23. h4 Rff8 24. Qg4 Bf7 25. b3 Bb4 26. Be3 Be6 27. Qg3 Bc5 28. Bd2 Bb4 29. Be3 Bc5 30. Bd2 Bb4 31. Be3 1/2-1/2

[Event "12th KIIT International 2019"]
[Site "Odisha"]
[Date "2019.06.01"]
[Round "2.7"]
[White "Burmakin, Vladimir"]
[Black "Sanskriti Goyal"]
[Result "1-0"]
[ECO "A30"]
[WhiteElo "2526"]
[BlackElo "1951"]
[Annotator "ChessBase"]
[PlyCount "147"]
[EventDate "2019.01.18"]
[EventType "swiss"]
[EventCountry "IND"]
[SourceTitle "playchess.com"]
[Source "ChessBase"]
[SourceQuality "1"]
[TimeControl "5400+30"]

1. Nf3 Nf6 2. g3 b6 3. Bg2 Bb7 4. O-O e6 5. c4 c5 6. Nc3 Be7 7. d4 cxd4 8. Qxd4 d6 9. Rd1 a6 10. Bg5 Nbd7 11. Rac1 h6 12. Be3 O-O 13. Qd2 Rc8 14. b3 Nc5 15. Bd4 Qc7 16. Qb2 Qb8 17. Nb1 b5 18. Nbd2 Rfd8 19. Bc3 Nce4 20. Ba5 Rf8 21. Nxe4 Nxe4 22. Nd4 Bf6 23. Qb1 Nc5 24. Bxb7 Qxb7 25. Nf3 Ne4 26. Qd3 bxc4 27. bxc4 Qc6 28. Nd4 Qa4 29. Be1 d5 30. f3 Nc5 31. Qc2 Qxc2 32. Rxc2 dxc4 33. Rxc4 Rfd8 34. Ba5 Rd7 35. Bb6 e5 36. Rxc5 Rxc5 37. Bxc5 exd4 38. Kf1 Rd5 39. Bb6 Rd6 40. Ba5 Rc6 41. Rd3 Rc1+ 42. Kf2 Rc2 43. Rd2 Rc4 44. f4 g5 45. Kf3 gxf4 46. gxf4 Kg7 47. Bb6 Kg6 48. Ke4 d3+ 49. Kxd3 Rxf4 50. e3 Ra4 51. Bd4 Bxd4 52. exd4 f5 53. d5 Kf6 54. Re2 Rb4 55. Re6+ Kg5 56. d6 Rb1 57. Kc4 Rd1 58. Kc5 f4 59. Re8 f3 60. Rf8 Kg4 61. Kc6 Rc1+ 62. Kb7 Rd1 63. Kc7 Rc1+ 64. Kd8 Rc2 65. d7 f2 66. Ke7 Re2+ 67. Kd6 Rd2+ 68. Kc6 Rc2+ 69. Kb6 Rd2 70. Rxf2 Rxd7 71. Kxa6 Rd1 72. Rb2 h5 73. a4 h4 74. a5 1-0

[Event "12th KIIT International 2019"]
[Site "Odisha"]
[Date "2019.06.01"]
[Round "2.8"]
[White "Adane, Narayani"]
[Black "Malakhatko, Vadim"]
[Result "1/2-1/2"]
[ECO "C10"]
[WhiteElo "1940"]
[BlackElo "2505"]
[Annotator "ChessBase"]
[PlyCount "44"]
[EventDate "2019.01.18"]
[EventType "swiss"]
[EventCountry "IND"]
[SourceTitle "playchess.com"]
[Source "ChessBase"]
[SourceQuality "1"]
[TimeControl "5400+30"]

1. e4 e6 2. d4 d5 3. Nc3 h6 4. exd5 exd5 5. Bd3 c6 6. Nge2 Nf6 7. Bf4 Be7 8. O-O Nbd7 9. Ng3 g6 10. Re1 Kf8 11. Qd2 h5 12. Bh6+ Kg8 13. Nf5 Bf8 14. Bxf8 Nxf8 15. Ne7+ Kg7 16. Nxc8 Rxc8 17. Ne2 h4 18. Nf4 Nh5 19. c3 Qf6 20. Nxh5+ Rxh5 21. Be2 Kh8 22. Bg4 Rc7 1/2-1/2

[Event "12th KIIT International 2019"]
[Site "Odisha"]
[Date "2019.06.01"]
[Round "2.10"]
[White "Samal Ansuman"]
[Black "Rahman, Ziaur"]
[Result "0-1"]
[ECO "B25"]
[WhiteElo "1939"]
[BlackElo "2481"]
[Annotator "ChessBase"]
[PlyCount "108"]
[EventDate "2019.01.18"]
[EventType "swiss"]
[EventCountry "IND"]
[SourceTitle "playchess.com"]
[Source "ChessBase"]
[SourceQuality "1"]
[TimeControl "5400+30"]

1. e4 {[%emt 0:08:17]} c5 2. Nc3 {[%emt 0:00:29]} a6 {[%emt 0:01:16]} 3. a4 Nc6 {[%emt 0:00:39]} 4. g3 {[%emt 0:03:34]} g6 5. Bg2 {[%emt 0:00:40]} Bg7 6. d3 {[%emt 0:01:43]} d6 7. f4 {[%emt 0:02:11]} Nf6 {[%emt 0:05:17]} 8. Nf3 {[%emt 0:00:58]} O-O {[%emt 0:00:30]} 9. O-O {[%emt 0:00:25]} Rb8 10. h3 {[%emt 0:06:44]} b5 {[%emt 0:02:45]} 11. axb5 {[%emt 0:01:34]} axb5 {[%emt 0:00:07]} 12. g4 {[%emt 0:13:40]} b4 {[%emt 0:01:22]} 13. Ne2 {[%emt 0:02:08]} Bb7 {[%emt 0:02:18]} 14. Ng3 {[%emt 0:08:00]} Qc7 {[%emt 0:06:09]} 15. Rb1 {[%emt 0:18:26]} Ra8 {[%emt 0:02:12]} 16. Qe1 {[%emt 0:11:37]} Nd7 {[%emt 0:03:20]} 17. Qf2 {[%emt 0:02:39]} Nf6 {[%emt 0:00:00]} 18. Qe1 {[%emt 0:00:00]} Nd7 {[%emt 0:01:00]} 19. Qf2 {[%emt 0:01:00]} Nf6 {[%emt 0:00:00]} 20. Qe1 {[%emt 0:00:00]} Nd7 {[%emt 0:01:00]} 21. Qf2 {[%emt 0:01:00]} Ra2 {[%emt 0:05:30]} 22. g5 {[%emt 0:01:24]} Ba6 {[%emt 0:01:21]} 23. Rd1 {[%emt 0:01:35]} Nd4 {[%emt 0:04:13]} 24. Nh2 {[%emt 0:06:40]} Nc6 {[%emt 0:00:00]} 25. Nf3 {[%emt 0:00:00]} Nd4 {[%emt 0:01:00]} 26. Nh2 {[%emt 0:01:00]} Bb5 {[%emt 0:04:35]} 27. Be3 {[%emt 0:01:25]} Ba4 {[%emt 0:04:33]} 28. Rd2 {[%emt 0:02:33]} b3 {[%emt 0:01:32]} 29. c3 {[%emt 0:00:22]} Nc2 {[%emt 0:00:12]} 30. f5 {[%emt 0:01:04]} Nxe3 {[%emt 0:05:11]} 31. Qxe3 {[%emt 0:00:10]} Ne5 {[%emt 0:00:34]} 32. Bf1 {[%emt 0:00:13]} Bb5 {[%emt 0:03:44]} 33. Rf2 {[%emt 0:02:33]} Ba4 {[%emt 0:00:00]} 34. Rd2 {[%emt 0:00:00]} Bb5 {[%emt 0:01:00]} 35. Rf2 {[%emt 0:01:00]} Rfa8 {[%emt 0:00:39]} 36. Be2 {[%emt 0:02:02]} Qa7 {[%emt 0:01:29]} 37. Kg2 {[%emt 0:00:28]} Qa6 {[%emt 0:03:02]} 38. c4 {[%emt 0:00:38]} Bd7 {[%emt 0:00:35]} 39. f6 {[%emt 0:00:07]} exf6 {[%emt 0:00:17]} 40. gxf6 {[%emt 0:00:11]} Bf8 {[%emt 0:00:19]} 41. Nf3 {[%emt 0:00:40]} Qc8 {[%emt 0:01:35]} 42. Ng1 {[%emt 0:01:10]} Qa6 {[%emt 0:00:00]} 43. Nf3 {[%emt 0:00:00]} Qc8 {[%emt 0:01:00]} 44. Ng1 {[%emt 0:01:00]} Ra1 {[%emt 0:05:14]} 45. Rff1 {[%emt 0:00:33]} Rxb1 {[%emt 0:00:41]} 46. Rxb1 {[%emt 0:00:02]} Nc6 {[%emt 0:00:54]} 47. Nf3 {[%emt 0:00:57]} Bxh3+ {[%emt 0:01:35]} 48. Kf2 {[%emt 0:00:27]} Ne5 {[%emt 0:01:39]} 49. Nxe5 {[%emt 0:00:27]} dxe5 {[%emt 0:00:05]} 50. Qg5 {[%emt 0:00:36]} Qd8 {[%emt 0:03:07]} 51. Qxe5 {[%emt 0:00:27]} Ra6 {[%emt 0:00:57]} 52. Ke1 {[%emt 0:00:38]} Rxf6 {[%emt 0:01:11]} 53. Qd5 {[%emt 0:00:30]} Qa5+ {[%emt 0:01:06]} 54. Kd1 {[%emt 0:00:07]} Bh6 {[%emt 0:00:15] Ke1 [%clk 0:00:33] Bf8+ [%clk 0:29:45] Kd1 [%clk 0:00:56] Bh6 [%clk 0:30:00] Ke1 [%clk 0:00:33] Bf8+ [%clk 0:29:45] Kd1 [%clk 0:00:56] Bh6 [%clk 0:30:00] Ke1 [%clk 0:00:33] Bf8+ [%clk 0:29:45] Kd1 [%clk 0:00:56] Bh6 [%clk 0:30:00] Ke1 [%clk 0:00:33] Bf8+ [%clk 0:29:45] Kd1 [%clk 0:00:56] Bh6 [%clk 0:30:00] Ke1 [%clk 0:00:33] Bf8+ [%clk 0:29:45] Kd1 [%clk 0:00:56] Bh6 [%clk 0:30:00] Ke1 [%clk 0:00:33] Bf8+ [%clk 0:29:45] Kd1 [%clk 0:00:56] Bh6 [%clk 0:30:00]} 0-1

[Event "12th KIIT International 2019"]
[Site "Odisha"]
[Date "2019.06.01"]
[Round "2.11"]
[White "Vasquez Schroeder, Rodrigo"]
[Black "Karthik Sai Ch"]
[Result "1-0"]
[ECO "D46"]
[WhiteElo "2476"]
[BlackElo "1963"]
[Annotator "ChessBase"]
[PlyCount "89"]
[EventDate "2019.01.18"]
[EventType "swiss"]
[EventCountry "IND"]
[SourceTitle "playchess.com"]
[Source "ChessBase"]
[SourceQuality "1"]
[TimeControl "5400+30"]

1. d4 {[%emt 0:00:00]} d5 {[%emt 0:00:00]} 2. c4 {[%emt 0:00:00]} c6 {[%emt 0:00:00]} 3. Nf3 {[%emt 0:00:00]} Nf6 {[%emt 0:00:00]} 4. Nc3 {[%emt 0:00:42]} e6 {[%emt 0:00:34]} 5. e3 {[%emt 0:01:12]} Nbd7 {[%emt 0:00:15]} 6. Bd3 {[%emt 0:00:31]} dxc4 {[%emt 0:00:08]} 7. Bxc4 {[%emt 0:00:06]} b5 {[%emt 0:00:07]} 8. Bd3 {[%emt 0:00:19]} Bd6 {[%emt 0:00:11]} 9. O-O {[%emt 0:00:19]} O-O {[%emt 0:00:06]} 10. a3 {[%emt 0:03:39]} a5 {[%emt 0:00:46]} 11. Qc2 {[%emt 0:01:40]} Bb7 {[%emt 0:05:15]} 12. Bd2 {[%emt 0:03:57]} Rc8 {[%emt 0:04:45]} 13. Rfc1 {[%emt 0:25:35]} b4 {[%emt 0:10:02]} 14. axb4 {[%emt 0:00:27]} axb4 {[%emt 0:00:12]} 15. Ne4 {[%emt 0:11:54]} Nxe4 {[%emt 0:04:19]} 16. Bxe4 {[%emt 0:01:37]} f5 {[%emt 0:03:43]} 17. Bd3 {[%emt 0:00:10]} c5 {[%emt 0:00:19]} 18. Qb3 {[%emt 0:00:32]} Rf6 {[%emt 0:12:53]} 19. Bc4 {[%emt 0:07:19]} Nf8 20. d5 {[%emt 0:00:30]} e5 21. e4 {[%emt 0:00:30]} f4 22. Ra7 {[%emt 0:00:30]} Rc7 23. Nxe5 {[%emt 0:00:30]} Qb8 24. Rxb7 {[%emt 0:00:30]} Qxb7 25. Ng4 {[%emt 0:00:30]} Rg6 26. e5 {[%emt 0:00:30]} Rxg4 27. exd6 {[%emt 0:00:30]} Rf7 28. Be2 {[%emt 0:00:30]} Rg6 29. Bh5 {[%emt 0:00:30]} Nd7 30. Bxg6 {[%emt 0:00:30]} hxg6 31. Re1 {[%emt 0:00:30]} Qb8 32. Re6 {[%emt 0:00:30]} Nf8 33. h4 {[%emt 0:00:30]} Qb5 34. Re4 {[%emt 0:00:30]} g5 35. hxg5 {[%emt 0:00:30]} Ra7 36. Bxf4 {[%emt 0:00:30]} Ra1+ 37. Kh2 {[%emt 0:00:30]} Qf1 38. Qf3 {[%emt 0:00:30]} Ng6 39. Be3 {[%emt 0:00:30]} Qh1+ 40. Kg3 {[%emt 0:00:30]} Ra7 41. Re8+ {[%emt 0:00:30]} Kh7 42. Qg4 {[%emt 0:00:30]} c4 43. Bxa7 {[%emt 0:00:30]} c3 44. b3 {[%emt 0:00:30]} c2 45. Be3 {[%emt 0:00:30]} 1-0

[Event "12th KIIT International 2019"]
[Site "Odisha"]
[Date "2019.06.01"]
[Round "2.12"]
[White "Rakshith Srinivasan"]
[Black "Nguyen, Van Huy"]
[Result "0-1"]
[ECO "B19"]
[WhiteElo "1935"]
[BlackElo "2456"]
[Annotator "ChessBase"]
[PlyCount "66"]
[EventDate "2019.01.18"]
[EventType "swiss"]
[EventCountry "IND"]
[SourceTitle "playchess.com"]
[Source "ChessBase"]
[SourceQuality "1"]
[TimeControl "5400+30"]

1. e4 {[%emt 0:00:00]} c6 {[%emt 0:00:00]} 2. d4 {[%emt 1:31:00]} d5 {[%emt 0:00:03]} 3. Nc3 {[%emt 0:00:00]} dxe4 {[%emt 0:00:36]} 4. Nxe4 {[%emt 0:00:00]} Bf5 {[%emt 0:00:06]} 5. Ng3 {[%emt 0:00:00]} Bg6 {[%emt 0:00:06]} 6. h4 {[%emt 0:00:00]} h6 {[%emt 0:00:16]} 7. Nf3 {[%emt 0:00:00]} Nd7 {[%emt 0:00:40]} 8. h5 {[%emt 0:00:00]} Bh7 {[%emt 0:00:05]} 9. Bd3 {[%emt 0:00:00]} Bxd3 {[%emt 0:00:30]} 10. Qxd3 {[%emt 0:00:00]} e6 {[%emt 0:00:05]} 11. Bd2 {[%emt 0:00:00]} Ngf6 {[%emt 0:00:35]} 12. O-O-O {[%emt 0:00:00]} Be7 {[%emt 0:00:06]} 13. Ne4 {[%emt 0:00:00]} Qb6 {[%emt 0:01:25]} 14. c4 {[%emt 0:00:00]} Nxe4 {[%emt 0:01:03]} 15. Qxe4 {[%emt 0:00:00]} Qa6 {[%emt 0:00:10]} 16. Ne5 {[%emt 0:00:00]} Qxa2 {[%emt 0:06:02]} 17. Qg4 {[%emt 0:00:00]} Bf6 {[%emt 0:07:39]} 18. Bc3 {[%emt 0:00:00]} Bxe5 {[%emt 0:03:43]} 19. dxe5 {[%emt 0:00:00]} O-O-O {[%emt 0:00:10]} 20. Qxg7 {[%emt 0:00:00]} Nc5 {[%emt 0:01:46]} 21. Qxf7 {[%emt 0:00:00]} Rdf8 {[%emt 0:05:18]} 22. Qg7 {[%emt 0:00:00]} Rhg8 {[%emt 0:02:21]} 23. Qh7 {[%emt 0:00:00]} Nb3+ {[%emt 0:02:27]} 24. Kc2 {[%emt 0:00:00]} Rxf2+ {[%emt 0:00:36]} 25. Rd2 {[%emt 0:00:00]} Rxd2+ {[%emt 0:01:02]} 26. Bxd2 Rxg2 {[%emt 0:00:30]} 27. Rd1 Nxd2 {[%emt 0:00:30]} 28. Qh8+ Kc7 {[%emt 0:00:30]} 29. Qh7+ Kb6 {[%emt 0:00:30]} 30. c5+ Ka5 {[%emt 0:00:30]} 31. Ra1 Qxa1 {[%emt 0:00:30]} 32. Qd3 Nc4+ {[%emt 0:00:30]} 33. Kb3 Qxb2+ {[%emt 0:00:30]} 0-1

[Event "12th KIIT International 2019"]
[Site "Odisha"]
[Date "2019.06.01"]
[Round "2.14"]
[White "Avinash Ramesh"]
[Black "Laxman, R.R."]
[Result "0-1"]
[ECO "C54"]
[WhiteElo "1823"]
[BlackElo "2437"]
[Annotator "ChessBase"]
[PlyCount "48"]
[EventDate "2019.01.18"]
[EventType "swiss"]
[EventCountry "IND"]
[SourceTitle "playchess.com"]
[Source "ChessBase"]
[SourceQuality "1"]
[TimeControl "5400+30"]

1. e4 {[%emt 0:00:00]} e5 {[%emt 0:00:00]} 2. Nf3 {[%emt 0:00:00]} Nc6 {[%emt 0:00:00]} 3. Bc4 {[%emt 0:00:00]} Bc5 {[%emt 0:00:00]} 4. c3 {[%emt 0:00:00]} Nf6 {[%emt 0:00:00]} 5. d3 {[%emt 0:00:05]} a6 {[%emt 0:00:42]} 6. O-O {[%emt 0:02:07]} Ba7 {[%emt 0:00:34]} 7. Bb3 {[%emt 0:00:22]} O-O {[%emt 0:00:18]} 8. h3 {[%emt 0:07:10]} d5 {[%emt 0:01:13]} 9. Qe2 {[%emt 0:08:14]} Re8 {[%emt 0:05:27]} 10. Bg5 {[%emt 0:06:33]} dxe4 {[%emt 0:01:59]} 11. dxe4 {[%emt 0:01:49]} h6 {[%emt 0:00:57]} 12. Rd1 {[%emt 0:05:57]} Qe7 {[%emt 0:00:05]} 13. Be3 {[%emt 0:02:51]} Bxe3 {[%emt 0:00:47]} 14. Qxe3 {[%emt 0:00:07]} Na5 {[%emt 0:01:02]} 15. Bc2 {[%emt 0:05:22]} Nc4 {[%emt 0:00:18]} 16. Qc1 {[%emt 0:00:02]} Nd6 {[%emt 0:02:39]} 17. Qe3 {[%emt 0:03:01]} Nc4 {[%emt 0:02:10]} 18. Qc1 {[%emt 0:00:12]} Nh5 {[%emt 0:00:15]} 19. b3 {[%emt 0:05:36]} Nf4 {[%emt 0:03:26]} 20. Re1 {[%emt 0:01:10]} Bxh3 {[%emt 0:05:00]} 21. g3 {[%emt 0:10:51]} Qf6 {[%emt 0:00:36]} 22. Nxe5 {[%emt 0:16:14]} Nxe5 {[%emt 0:00:14]} 23. Qxf4 {[%emt 0:00:36]} Qxf4 {[%emt 0:00:11]} 24. gxf4 {[%emt 0:00:04]} Nf3+ {[%emt 0:00:03]} 0-1

[Event "12th KIIT International 2019"]
[Site "Odisha"]
[Date "2019.06.01"]
[Round "2.15"]
[White "Lugovskoy, Maxim"]
[Black "Manish Kumar (2006)"]
[Result "0-1"]
[ECO "C47"]
[WhiteElo "2451"]
[BlackElo "1973"]
[Annotator "ChessBase"]
[PlyCount "74"]
[EventDate "2019.01.18"]
[EventType "swiss"]
[EventCountry "IND"]
[SourceTitle "playchess.com"]
[Source "ChessBase"]
[SourceQuality "1"]
[TimeControl "5400+30"]

1. e4 {[%emt 0:08:03]} e5 {[%emt 0:00:00]} 2. Nf3 {[%emt 0:00:29]} Nc6 {[%emt 0:00:00]} 3. Nc3 {[%emt 0:01:07]} Nf6 {[%emt 0:00:01]} 4. d4 {[%emt 0:00:07]} exd4 {[%emt 0:00:08]} 5. Nxd4 {[%emt 0:00:05]} Bb4 {[%emt 0:00:06]} 6. Nxc6 {[%emt 0:00:03]} bxc6 {[%emt 0:00:05]} 7. Bd3 {[%emt 0:00:04]} d5 {[%emt 0:00:06]} 8. exd5 {[%emt 0:00:05]} cxd5 {[%emt 0:00:30]} 9. O-O {[%emt 0:00:30]} O-O {[%emt 0:00:30]} 10. h3 {[%emt 0:00:30]} c5 {[%emt 0:00:30]} 11. Qf3 {[%emt 0:00:30]} Be6 {[%emt 0:04:25]} 12. Rd1 {[%emt 0:00:30]} Qe7 13. Bf1 {[%emt 0:00:30]} h6 {[%emt 0:01:00]} 14. Bf4 {[%emt 0:00:30]} Rad8 {[%emt 0:00:30]} 15. Nb5 {[%emt 0:00:30]} Ba5 {[%emt 0:00:30]} 16. c3 {[%emt 0:00:30]} Bb6 {[%emt 0:00:30]} 17. Bd3 {[%emt 0:00:30]} a6 {[%emt 0:00:30]} 18. Na3 {[%emt 0:00:30]} c4 {[%emt 0:00:30]} 19. Bc2 {[%emt 0:00:30]} d4 {[%emt 0:00:30]} 20. Re1 {[%emt 0:00:30]} dxc3 {[%emt 0:00:30]} 21. Nxc4 {[%emt 0:00:30]} cxb2 {[%emt 0:00:30]} 22. Rab1 {[%emt 0:00:30]} Bd4 {[%emt 0:00:30]} 23. Nxb2 {[%emt 0:00:30]} Qc5 {[%emt 0:00:30]} 24. Bb3 {[%emt 0:00:30]} Bxb3 {[%emt 0:00:30]} 25. axb3 {[%emt 0:00:30]} Qf5 {[%emt 0:00:30]} 26. Nc4 {[%emt 0:00:30]} Nd5 {[%emt 0:00:30]} 27. Be3 {[%emt 0:00:30]} Qxf3 {[%emt 0:00:30]} 28. gxf3 {[%emt 0:00:30]} Nb4 {[%emt 0:00:30]} 29. Red1 {[%emt 0:00:30]} Nc6 {[%emt 0:00:30]} 30. Kg2 {[%emt 0:00:30]} Bf6 {[%emt 0:00:30]} 31. Nd6 {[%emt 0:00:30]} Be7 {[%emt 0:00:30]} 32. Nf5 {[%emt 0:00:30]} Bf6 {[%emt 0:00:30]} 33. Rdc1 {[%emt 0:00:30]} Ne5 {[%emt 0:00:30]} 34. Rc7 {[%emt 0:00:30]} Rfe8 {[%emt 0:00:30]} 35. Ra7 {[%emt 0:00:30]} Re6 {[%emt 0:00:30]} 36. Re1 {[%emt 0:00:30]} Rd7 {[%emt 0:00:30]} 37. Ra8+ {[%emt 0:00:30]} Kh7 {[%emt 0:00:30]} 0-1

[Event "12th KIIT International 2019"]
[Site "Odisha"]
[Date "2019.06.01"]
[Round "2.16"]
[White "Kadam Om Manish"]
[Black "Khusenkhojaev, Muhammad"]
[Result "0-1"]
[ECO "C99"]
[WhiteElo "1979"]
[BlackElo "2446"]
[Annotator "ChessBase"]
[PlyCount "53"]
[EventDate "2019.01.18"]
[EventType "swiss"]
[EventCountry "IND"]
[SourceTitle "playchess.com"]
[Source "ChessBase"]
[SourceQuality "1"]
[TimeControl "5400+30"]

1. e4 {[%emt 0:00:00]} e5 {[%emt 0:07:19]} 2. Nf3 {[%emt 0:00:16]} Nc6 {[%emt 0:00:07]} 3. Bb5 {[%emt 0:01:03]} a6 {[%emt 0:00:20]} 4. Ba4 {[%emt 0:00:10]} Nf6 {[%emt 0:00:08]} 5. O-O {[%emt 0:01:16]} Be7 {[%emt 0:00:06]} 6. Re1 {[%emt 0:00:26]} b5 {[%emt 0:00:18]} 7. Bb3 {[%emt 0:00:18]} d6 {[%emt 0:00:28]} 8. c3 {[%emt 0:00:49]} O-O {[%emt 0:00:08]} 9. h3 {[%emt 0:00:08]} Na5 {[%emt 0:00:12]} 10. Bc2 {[%emt 0:00:14]} c5 {[%emt 0:00:09]} 11. d4 {[%emt 0:00:28]} Qc7 {[%emt 0:00:15]} 12. Nbd2 {[%emt 0:00:34]} cxd4 {[%emt 0:01:04]} 13. cxd4 {[%emt 0:00:16]} Bb7 {[%emt 0:00:17]} 14. Nf1 {[%emt 0:05:17]} Rfc8 {[%emt 0:05:25]} 15. Bd3 {[%emt 0:01:18]} Nc6 {[%emt 0:01:43]} 16. Ng3 {[%emt 0:08:04]} Nb4 {[%emt 0:00:42]} 17. Bg5 {[%emt 0:16:58]} h6 {[%emt 0:05:00]} 18. Rc1 {[%emt 0:05:12]} Qd8 {[%emt 0:14:24]} 19. Rxc8 {[%emt 0:02:04]} Rxc8 {[%emt 0:00:59]} 20. Bxf6 {[%emt 0:01:02]} Bxf6 {[%emt 0:00:15]} 21. Bb1 {[%emt 0:01:18]} exd4 {[%emt 0:03:15]} 22. Qd2 {[%emt 0:03:14]} Nc6 {[%emt 0:01:31]} 23. Nf5 {[%emt 0:00:14]} Ne5 {[%emt 0:01:08]} 24. N5xd4 {[%emt 0:01:41]} Nc4 {[%emt 0:01:21]} 25. Qe2 {[%emt 0:00:15]} Qb6 {[%emt 0:01:24]} 26. Rd1 {[%emt 0:03:31]} Re8 {[%emt 0:02:28]} 27. Nf5 0-1

[Event "12th KIIT International 2019"]
[Site "Odisha"]
[Date "2019.06.01"]
[Round "2.17"]
[White "Shyaamnikhil P"]
[Black "Jayachandra Srinivas Vellanki"]
[Result "1-0"]
[ECO "B39"]
[WhiteElo "2434"]
[BlackElo "1893"]
[Annotator "ChessBase"]
[PlyCount "57"]
[EventDate "2019.01.18"]
[EventType "swiss"]
[EventCountry "IND"]
[SourceTitle "playchess.com"]
[Source "ChessBase"]
[SourceQuality "1"]
[TimeControl "5400+30"]

1. Nf3 {[%emt 0:00:42]} g6 {[%emt 0:01:35]} 2. e4 {[%emt 0:01:06]} c5 {[%emt 0:02:07]} 3. c4 {[%emt 0:06:05]} Bg7 {[%emt 0:03:16]} 4. d4 {[%emt 0:00:09]} cxd4 {[%emt 0:00:17]} 5. Nxd4 {[%emt 0:00:05]} Nc6 {[%emt 0:01:09]} 6. Be3 {[%emt 0:00:10]} Nf6 {[%emt 0:01:23]} 7. Nc3 {[%emt 0:00:07]} Ng4 {[%emt 0:06:18]} 8. Qxg4 {[%emt 0:00:11]} Nxd4 {[%emt 0:00:05]} 9. Qd1 {[%emt 0:00:09]} Nc6 {[%emt 0:00:32]} 10. Qd2 {[%emt 0:00:09]} O-O {[%emt 0:01:30]} 11. Be2 {[%emt 0:01:42]} d6 {[%emt 0:00:09]} 12. O-O {[%emt 0:00:12]} Be6 {[%emt 0:02:07]} 13. Rac1 {[%emt 0:01:56]} Qa5 {[%emt 0:04:27]} 14. Rfd1 {[%emt 0:02:36]} Rfc8 {[%emt 0:02:59]} 15. f4 {[%emt 0:01:47]} a6 {[%emt 0:16:28]} 16. b3 {[%emt 0:12:11]} b5 {[%emt 0:11:28]} 17. Nd5 {[%emt 0:01:04]} Qxd2 {[%emt 0:00:37]} 18. Rxd2 {[%emt 0:00:07]} Bxd5 {[%emt 0:01:09]} 19. exd5 {[%emt 0:00:41]} Na5 {[%emt 0:01:54]} 20. Rdc2 {[%emt 0:03:17]} bxc4 {[%emt 0:01:39]} 21. b4 {[%emt 0:00:10]} Nb7 {[%emt 0:01:13]} 22. Rxc4 {[%emt 0:00:09]} Rcb8 {[%emt 0:03:33]} 23. Rc7 {[%emt 0:06:26]} Bf6 24. Bg4 {[%emt 0:00:30]} Nd8 25. Rc8 {[%emt 0:00:30]} e6 26. dxe6 {[%emt 0:00:30]} fxe6 27. Bxe6+ {[%emt 0:00:30]} Kg7 28. R1c7+ {[%emt 0:00:30]} Kh8 29. Bd5 {[%emt 0:00:30]} 1-0